bitfinex/quotes_ETHUSD_20251004
["timestamp","ask_amount","ask_price","bid_price","bid_amount"]
[1759539884577,7.4565705,4497.8,4497.7,0.001]
[1759539884743,7.9339614,4497.8,4497.7,0.001]
[1759539885162,7.4565705,4497.8,4497.7,0.001]
[1759539885656,7.93401128,4497.8,4497.7,0.001]
[1759539886808,7.4565705,4497.8,4497.7,0.001]
[1759539889854,7.0247705,4497.8,4497.7,0.001]
[1759539890650,6.52450917,4497.8,4497.7,0.001]
[1759539895425,6.97430917,4497.8,4497.7,0.001]
[1759539896164,9.37430917,4497.8,4497.7,0.001]
[1759539896355,9.85150765,4497.8,4497.7,0.001]
[1759539900272,10.48510765,4497.8,4497.7,0.001]
[1759539900563,12.12884345,4497.8,4497.7,0.001]
[1759539900971,12.21782953,4497.8,4497.7,0.001]
[1759539901871,8.02782953,4497.8,4497.7,0.001]
[1759539910463,7.57802953,4497.8,4497.7,0.001]
[1759539910902,8.02782953,4497.8,4497.7,0.001]
[1759539913207,8.02782953,4497.8,4496.2,0.46]
[1759539913208,0.6336,4497.5,4496.2,0.46]
[1759539913409,2.22375414,4496.9,4496.4,0.46]
[1759539913571,2.23484708,4496.9,4496.4,0.46]
[1759539918358,2.23484708,4496.9,4496.8,0.461]
[1759539920628,2.85705747,4497.5,4496.8,0.461]
[1759539920820,2.22375414,4496.9,4496.8,0.461]
[1759539923333,2.22375414,4496.9,4496.8,0.001]
[1759539923334,2.33495414,4496.9,4496.8,0.001]
[1759539928425,2.80845414,4496.9,4496.8,0.001]
[1759539929055,2.33495414,4496.9,4496.8,0.001]
[1759539931136,3.44205414,4496.9,4496.8,0.001]
[1759539931461,4.10132729,4496.9,4496.8,0.001]
[1759539931841,4.11242023,4496.9,4496.8,0.001]
[1759539932250,4.20142175,4496.9,4496.8,0.001]
[1759539935146,3.72792175,4496.9,4496.8,0.001]
[1759539937856,3.63892023,4496.9,4496.8,0.001]
[1759539938194,2.99422729,4496.9,4496.8,0.4607]
[1759539938376,2.33495414,4496.9,4496.8,0.4607]
[1759539938763,2.33495414,4496.9,4496.8,0.001]
[1759539938965,2.33495414,4496.9,4496.8,0.4607]
[1759539939171,0.002,4497.1,4496.8,0.4607]
[1759539940195,0.002,4497.1,4496.9,0.02223754]
[1759539940693,0.002,4497.1,4497.0,0.4597]
[1759539941588,2.22565524,4497.1,4497.0,0.4597]
[1759539942471,0.002,4497.1,4497.0,0.4597]
[1759539942804,0.002,4497.1,4497.0,0.02223704]
[1759539942985,2.22565524,4497.1,4497.0,0.4597]
[1759539943860,0.002,4497.1,4497.0,0.4597]
[1759539944066,0.002,4497.1,4497.0,0.48193704]
[1759539946674,0.002,4497.1,4497.0,0.78073074]
[1759539947279,0.002,4497.1,4497.0,0.48193704]
[1759539947476,0.002,4497.1,4497.0,2.98693704]
[1759539953518,0.002,4497.1,4497.0,2.52723704]
[1759539953821,0.002,4497.1,4497.0,2.505]
[1759539954617,0.002,4497.1,4496.8,0.001]
[1759539954818,0.4491,4497.0,4496.8,0.001]
[1759539955028,2.22370469,4497.0,4496.9,2.505]
[1759539955623,2.78400469,4497.0,4496.9,2.505]
[1759539957041,0.1112,4497.0,4496.9,2.505]
[1759539959240,0.002,4497.1,4496.9,3.22618]
[1759539959397,0.002,4497.1,4497.0,0.02223704]
[1759539959602,0.002,4497.1,4497.0,0.45003704]
[1759539961852,0.002,4497.1,4497.0,0.45103704]
[1759539962849,0.002,4497.1,4497.0,0.72610887]
[1759539963016,0.002,4497.1,4497.0,0.74834591]
[1759539963411,0.002,4497.1,4497.0,0.72610887]
[1759539963639,0.002,4497.1,4497.0,0.29830887]
[1759539963825,2.22565524,4497.1,4497.0,0.001]
[1759539964056,2.67475524,4497.1,4497.0,2.506]
[1759539964262,0.002,4497.1,4497.0,2.506]
[1759539964443,2.22565524,4497.1,4497.0,2.506]
[1759539967951,2.67475524,4497.1,4497.0,2.506]
[1759539968148,2.22565524,4497.1,4497.0,2.506]
[1759539968347,2.67475524,4497.1,4497.0,2.506]
[1759539971389,2.22565524,4497.1,4497.0,2.506]
[1759539971808,0.1132,4497.1,4497.0,2.9338]
[1759539972297,0.1132,4497.1,4497.0,3.22728]
[1759539974202,2.33685524,4497.1,4497.0,2.506]
[1759539974606,2.78595524,4497.1,4497.0,2.506]
[1759539980233,2.33685524,4497.1,4497.0,2.506]
[1759539981624,0.1132,4497.1,4497.0,2.506]
[1759539982331,2.33685524,4497.1,4497.0,2.506]
[1759539986968,2.76855524,4497.1,4497.0,2.506]
[1759539987164,2.33685524,4497.1,4497.0,2.506]
[1759539987766,2.33685524,4497.1,4497.0,0.001]
[1759539987928,3.29046654,4497.1,4497.0,2.506]
[1759539988458,2.79125524,4497.1,4497.0,2.506]
[1759539988660,2.33685524,4497.1,4497.0,2.506]
[1759539990652,0.1132,4497.1,4497.0,2.506]
[1759539990844,2.33685524,4497.1,4497.0,2.506]
[1759540004580,2.79125524,4497.1,4497.0,2.506]
[1759540007921,2.83833654,4497.1,4497.0,2.506]
[1759540008102,3.29273654,4497.1,4497.0,2.506]
[1759540009236,5.58153654,4497.1,4497.0,0.001]
[1759540009420,6.05858963,4497.1,4497.0,0.001]
[1759540009626,6.72605206,4497.1,4497.0,0.001]
[1759540009938,7.35965206,4497.1,4497.0,0.001]
[1759540019366,7.47085206,4497.1,4497.0,0.001]
[1759540022040,7.01645206,4497.1,4497.0,0.001]
[1759540025269,6.53939897,4497.1,4497.0,0.001]
[1759540027451,11.00971296,4497.1,4497.0,0.001]
[1759540027654,13.51471296,4497.1,4497.0,0.001]
[1759540028563,9.87470307,4497.1,4497.0,0.001]
[1759540028762,13.51471296,4497.1,4497.0,0.001]
[1759540032672,2.8575025,4496.6,4496.5,1e-08]
[1759540032970,2.22459512,4495.2,4494.8,0.35]
[1759540033712,2.22459512,4495.2,4495.1,0.4713]
[1759540037510,2.33579512,4495.2,4495.1,0.4713]
[1759540038612,0.1112,4495.2,4495.1,0.4713]
[1759540045897,2.22415395,4496.1,4495.1,0.4392]
[1759540046094,2.22430549,4495.8,4495.1,0.4392]
[1759540046300,2.22430549,4495.8,4495.1,0.4402]
[1759540046498,2.22430549,4495.8,4495.1,0.56635]
[1759540046683,2.22426065,4495.9,4495.1,0.56635]
[1759540046895,0.01109294,4495.8,4495.1,0.13715]
[1759540047097,0.01109294,4495.8,4495.2,2.505]
[1759540047098,2.22442827,4495.6,4495.2,2.505]
[1759540047623,2.22436174,4495.7,4495.2,2.9709]
[1759540048295,0.01109294,4495.8,4495.3,2.505]
[1759540048606,2.22454563,4495.3,4495.1,0.011]
[1759540048781,2.22454563,4495.3,4495.1,2.516]
[1759540048978,2.22454563,4495.3,4495.1,0.011]
[1759540049392,2.22451482,4495.4,4495.1,0.011]
[1759540049577,0.01109294,4495.6,4495.1,0.4769]
[1759540049783,2.22453922,4495.4,4495.2,0.4659]
[1759540050191,2.22454685,4495.3,4495.1,0.011]
[1759540050779,0.6676481,4495.7,4495.1,0.011]
[1759540050985,2.22459512,4495.2,4495.1,0.011]
[1759540051196,2.22454298,4495.4,4495.1,0.011]
[1759540051715,4.6214,4495.6,4495.1,0.011]
[1759540051916,2.22444666,4495.5,4495.1,0.011]
[1759540052089,2.22449615,4495.4,4495.1,0.011]
[1759540052296,2.22459512,4495.2,4495.1,0.011]
[1759540053423,3.10090711,4495.2,4495.1,0.011]
[1759540053718,3.76860722,4495.2,4495.1,0.011]
[1759540054012,3.32369523,4495.2,4495.1,0.011]
[1759540055032,6.35729523,4495.2,4495.1,0.011]
[1759540055189,6.83364898,4495.2,4495.1,0.011]
[1759540056021,6.94484898,4495.2,4495.1,0.011]
[1759540056229,8.47628735,4495.2,4495.1,0.011]
[1759540056587,7.9999336,4495.2,4495.1,0.011]
[1759540057026,8.47613707,4495.2,4495.1,0.011]
[1759540057233,7.9999336,4495.2,4495.1,0.011]
[1759540057892,7.5685336,4495.2,4495.1,0.011]
[1759540058294,7.9999336,4495.2,4495.1,0.011]
[1759540060734,11.63994349,4495.2,4495.1,0.011]
[1759540061388,12.11593749,4495.2,4495.1,0.011]
[1759540061593,11.63994349,4495.2,4495.1,0.011]
[1759540062020,12.11594698,4495.2,4495.1,0.011]
[1759540062220,12.11593564,4495.2,4495.1,0.011]
[1759540062725,11.63994349,4495.2,4495.1,0.011]
[1759540064056,12.11579993,4495.2,4495.1,0.011]
[1759540064354,12.11574757,4495.2,4495.1,0.011]
[1759540068757,14.62174757,4495.2,4495.1,0.011]
[1759540069353,14.14594349,4495.2,4495.1,0.011]
[1759540069561,14.6214764,4495.2,4495.1,0.011]
[1759540069886,0.6336,4494.7,4494.1,0.4659]
[1759540070088,0.01109294,4494.6,4494.1,0.4659]
[1759540070290,0.01109294,4494.6,4493.7,0.02225337]
[1759540070291,2.22502921,4494.4,4493.7,0.02225337]
[1759540070490,0.01109294,4494.3,4493.8,0.4537]
[1759540070651,0.66784132,4494.5,4493.8,0.4537]
[1759540070856,2.22509365,4494.2,4493.8,0.4537]
[1759540071480,0.59514414,4495.8,4493.9,0.47595238]
[1759540071676,0.66777294,4494.7,4493.9,0.47595238]
[1759540071908,0.01109294,4495.7,4493.9,0.47595238]
[1759540071909,2.22478062,4494.9,4493.9,0.4537]
[1759540072398,0.01,4494.9,4493.9,0.4537]
[1759540072596,0.01,4494.9,4493.9,0.47595238]
[1759540073203,0.01,4494.9,4494.0,0.30189348]
[1759540073370,0.01,4494.9,4493.9,1.12137634]
[1759540073371,0.01,4494.9,4494.2,2.22508136]
[1759540073571,0.01,4494.9,4494.3,0.0222504]
[1759540073872,0.01,4494.9,4494.3,0.4759504]
[1759540074035,0.01,4494.9,4494.4,0.93772157]
[1759540074552,0.01,4494.9,4494.5,0.47594941]
[1759540074723,0.01,4494.9,4494.6,2.506]
[1759540074917,0.01,4494.9,4494.7,0.02224842]
[1759540075221,0.01,4494.9,4494.8,0.4537]
[1759540075438,0.01,4494.9,4494.8,0.77428569]
[1759540077465,0.01,4494.9,4494.8,3.02132671]
[1759540078566,0.01,4494.9,4494.8,5.42132671]
[1759540078897,0.01,4494.9,4494.8,3.17428569]
[1759540079036,0.01,4494.9,4494.8,5.42132671]
[1759540079378,0.01,4494.9,4494.8,5.39907878]
[1759540079949,0.01,4494.9,4494.8,5.51027878]
[1759540082139,0.01,4494.9,4494.8,5.62347878]
[1759540082535,0.01,4494.9,4494.8,14.38601307]
[1759540082738,0.01,4494.9,4494.8,15.74161107]
[1759540083439,0.01,4494.9,4494.8,15.36771568]
[1759540083658,0.01,4494.9,4494.8,21.17614068]
[1759540083974,0.01,4494.9,4494.8,20.95621268]
[1759540084174,0.01,4494.9,4494.8,20.66128668]
[1759540084494,0.01,4494.9,4494.8,21.29488668]
[1759540084693,0.01,4494.9,4494.8,31.53286268]
[1759540085209,0.002,4495.7,4494.9,5.56532649]
[1759540085369,0.002,4495.7,4495.6,2.22439718]
[1759540085713,0.002,4495.7,4495.6,20.30306515]
[1759540085988,0.002,4495.7,4495.6,20.89885618]
[1759540087095,0.002,4495.7,4495.6,20.33285618]
[1759540087293,0.002,4495.7,4495.6,20.74494477]
[1759540089297,0.002,4495.7,4495.6,36.77394377]
[1759540089510,0.002,4495.7,4495.6,29.08403677]
[1759540089809,0.002,4495.7,4495.6,28.55413777]
[1759540090407,0.002,4495.7,4495.6,38.95546577]
[1759540090764,0.002,4495.7,4495.6,36.40313977]
[1759540091305,0.002,4495.7,4495.6,36.51351062]
[1759540091466,0.002,4495.7,4495.6,36.29358262]
[1759540092439,0.002,4495.7,4495.6,35.58532862]
[1759540093237,0.002,4495.7,4495.6,35.67429669]
[1759540093435,0.002,4495.7,4495.6,35.82429669]
[1759540093937,0.002,4495.7,4495.6,35.39829669]
[1759540094498,0.002,4495.7,4495.6,35.62412269]
[1759540095002,0.002,4495.7,4495.6,35.01310769]
[1759540095531,0.002,4495.7,4495.6,35.03224969]
[1759540096740,0.002,4495.7,4495.6,35.03224469]
[1759540097650,0.002,4495.7,4495.6,9.15480469]
[1759540097954,0.002,4495.7,4495.6,35.03224469]
[1759540098620,0.002,4495.7,4495.6,34.93805869]
[1759540098936,0.002,4495.7,4495.6,34.60149669]
[1759540099642,0.002,4495.7,4495.6,34.60594469]
[1759540099848,0.002,4495.7,4495.6,29.95098869]
[1759540100050,0.002,4495.7,4495.6,15.80819179]
[1759540100263,0.002,4495.7,4495.6,16.24349179]
[1759540100667,0.002,4495.7,4495.6,8.82942179]
[1759540100839,0.002,4495.7,4495.6,17.29505879]
[1759540101236,0.002,4495.7,4495.6,17.40775879]
[1759540101868,0.002,4495.7,4495.6,19.01075879]
[1759540102474,0.002,4495.7,4495.6,19.31774169]
[1759540102674,0.002,4495.7,4495.6,19.75304169]
[1759540102836,0.002,4495.7,4495.6,34.03727869]
[1759540103167,0.002,4495.7,4495.6,33.32199097]
[1759540103383,0.002,4495.7,4495.6,31.64909997]
[1759540103872,0.002,4495.7,4495.6,33.38095597]
[1759540104852,0.002,4495.7,4495.6,33.67482397]
[1759540105271,0.002,4495.7,4495.6,32.48411169]
[1759540105838,0.002,4495.7,4495.6,32.61708569]
[1759540106261,0.002,4495.7,4495.6,32.39715769]
[1759540106859,0.002,4495.7,4495.6,32.61708569]
[1759540107288,0.002,4495.7,4495.6,32.39715769]
[1759540107889,0.002,4495.7,4495.6,41.33520469]
[1759540109305,0.002,4495.7,4495.6,42.93371985]
[1759540109478,0.002,4495.7,4495.6,41.33520469]
[1759540110911,0.01,4495.9,4495.7,35.25794771]
[1759540110912,1e-08,4495.9,4495.7,35.25794771]
[1759540111114,0.002,4496.6,4496.0,3.0336]
[1759540111319,0.002,4496.6,4496.5,6.45301569]
[1759540111472,0.002,4496.6,4496.5,26.39914465]
[1759540111815,0.002,4496.6,4496.5,30.92014765]
[1759540112113,0.002,4496.6,4496.5,26.0738649]
[1759540112320,0.002,4496.6,4496.5,24.0383709]
[1759540112817,0.002,4496.6,4496.5,16.6738079]
[1759540113371,0.002,4496.6,4496.5,16.7850079]
[1759540113770,0.002,4496.6,4496.5,17.9729259]
[1759540114958,0.002,4496.6,4496.5,17.9134539]
[1759540115654,0.451,4496.6,4496.5,17.9134539]
[1759540116561,0.451,4496.6,4496.5,15.8170429]
[1759540116863,0.451,4496.6,4496.5,16.4972629]
[1759540119060,0.002,4496.6,4496.5,18.3861479]
[1759540119655,0.002,4496.6,4496.5,16.5917299]
[1759540119809,0.002,4496.6,4496.5,17.8105109]
[1759540120217,0.451,4496.6,4496.5,14.3778739]
[1759540121149,0.451,4496.6,4496.5,14.6790129]
[1759540122047,0.451,4496.6,4496.5,16.2085919]
[1759540122268,0.002,4496.6,4496.5,10.7599919]
[1759540122550,0.451,4496.6,4496.5,8.43502619]
[1759540123849,0.451,4496.6,4496.5,5.93202619]
[1759540124024,0.451,4496.6,4496.5,8.43502619]
[1759540126359,0.451,4496.6,4496.5,3.70826331]
[1759540126541,0.451,4496.6,4496.5,0.1112]
[1759540126755,0.451,4496.6,4496.5,2.6142]
[1759540128517,0.451,4496.6,4496.5,2.503]
[1759540128712,0.451,4496.6,4495.2,4.44557282]
[1759540128713,0.71948537,4496.6,4496.3,0.1112]
[1759540128913,0.451,4496.6,4496.4,2.503]
[1759540129147,0.449,4496.5,4496.4,2.503]
[1759540129342,0.72760413,4496.5,4496.4,2.503]
[1759540129746,0.449,4496.5,4496.4,2.503]
[1759540131717,0.449,4496.5,4495.2,3.41806331]
[1759540131921,0.5712,4496.4,4495.7,0.1112]
[1759540132121,0.5712,4496.4,4495.8,2.52624298]
[1759540132337,0.46,4496.3,4495.8,2.52624298]
[1759540132562,0.46,4496.2,4495.8,2.52624298]
[1759540132720,0.46,4496.1,4495.8,2.52624298]
[1759540133056,0.46,4496.0,4495.8,2.52624298]
[1759540133242,0.1112,4496.4,4495.8,2.52624298]
[1759540133436,0.46,4495.9,4495.8,2.52624298]
[1759540134623,0.46,4495.9,4495.8,2.504]
[1759540137162,0.46,4495.9,4495.8,2.505]
[1759540138563,0.002,4496.5,4495.8,3.6585029]
[1759540138767,0.002,4496.5,4496.4,2.22400142]
[1759540138973,0.002,4496.5,4496.4,2.6152]
[1759540139267,0.002,4496.5,4496.4,2.63744001]
[1759540139937,0.002,4496.5,4496.4,4.86144143]
[1759540140265,0.002,4496.5,4496.4,4.83920142]
[1759540141065,0.002,4496.5,4496.4,2.6152]
[1759540141360,0.002,4496.5,4496.4,2.63744001]
[1759540142069,0.462,4496.5,4496.4,2.63744001]
[1759540142426,0.462,4496.5,4496.4,0.1112]
[1759540142627,0.462,4496.5,4495.8,0.001]
[1759540142870,2.22410008,4496.3,4495.9,0.1112]
[1759540143029,0.46,4496.2,4495.9,2.504]
[1759540143530,0.46,4496.1,4495.9,2.504]
[1759540143731,0.46,4496.0,4495.9,2.504]
[1759540146774,2.22424875,4495.9,4495.8,0.001]
[1759540146990,6.72785295,4495.9,4495.8,2.505]
[1759540147147,6.32210484,4495.9,4495.8,0.001]
[1759540147484,2.68424875,4495.9,4495.8,2.39]
[1759540147640,0.9619625,4495.9,4495.8,2.39]
[1759540147833,0.46,4495.9,4495.8,2.39]
[1759540148384,2.68424875,4495.9,4495.8,2.39]
[1759540148601,0.46,4495.9,4495.8,2.39]
[1759540148805,0.1112,4496.0,4495.8,2.39]
[1759540149014,0.46,4495.9,4495.8,2.39]
[1759540150503,2.68424875,4495.9,4495.8,2.39]
[1759540152883,0.46,4495.9,4495.8,2.39]
[1759540153692,0.1112,4496.0,4495.8,2.39]
[1759540154086,0.46,4495.9,4495.8,2.39]
[1759540156024,0.1112,4496.0,4495.8,2.39]
[1759540156180,0.002,4496.1,4495.9,0.02224248]
[1759540156376,0.002,4496.1,4495.8,2.39]
[1759540156976,0.002,4496.1,4495.9,0.02224248]
[1759540158877,0.002,4496.1,4495.8,2.39]
[1759540159375,0.462,4496.1,4495.9,2.504]
[1759540160307,0.002,4496.1,4496.0,2.504]
[1759540162579,0.002,4496.1,4496.0,2.6152]
[1759540167119,0.002,4496.1,4496.0,0.1112]
[1759540167323,0.002,4496.1,4496.0,2.504]
[1759540167324,0.4558,4496.1,4496.0,2.504]
[1759540167554,3.06024473,4496.1,4496.0,2.504]
[1759540167919,2.60644473,4496.1,4496.0,2.504]
[1759540168118,3.04214473,4496.1,4496.0,2.504]
[1759540168654,0.38229492,4496.1,4496.0,2.504]
[1759540168858,0.1132,4496.1,4496.0,2.504]
[1759540169259,0.5489,4496.1,4496.0,2.504]
[1759540172060,2.77304981,4496.1,4496.0,2.504]
[1759540172269,0.5489,4496.1,4496.0,2.504]
[1759540173672,2.77304981,4496.1,4496.0,2.504]
[1759540173823,3.27386492,4496.1,4496.0,2.504]
[1759540174023,2.77304981,4496.1,4496.0,2.504]
[1759540174656,0.5489,4496.1,4496.0,2.504]
[1759540178833,0.1132,4496.1,4496.0,2.504]
[1759540190804,0.002,4496.1,4496.0,2.504]
[1759540191135,0.002,4496.1,4496.0,3.2065243]
[1759540192235,0.002,4496.1,4496.0,2.9538]
[1759540192410,0.002,4496.1,4496.0,2.9548]
[1759540193639,0.002,4496.1,4496.0,2.505]
[1759540199901,0.002,4496.1,4496.0,2.9548]
[1759540200635,0.002,4496.1,4496.0,2.505]
[1759540200938,0.4502,4496.1,4496.0,2.505]
[1759540201239,0.002,4496.1,4496.0,0.001]
[1759540201444,0.83994659,4496.1,4496.0,2.505]
[1759540202011,0.83994659,4496.1,4496.0,0.001]
[1759540202012,6.70195249,4496.1,4496.0,0.001]
[1759540202338,6.70195249,4496.1,4496.0,1.022]
[1759540202339,3.0640964,4496.1,4496.0,1.022]
[1759540203348,5.4640964,4496.1,4496.0,0.001]
[1759540203548,10.9435013,4496.1,4496.0,0.001]
[1759540203844,8.71935149,4496.1,4495.4,0.001]
[1759540204047,2.22444666,4495.5,4495.4,0.001]
[1759540204247,2.3467396,4495.5,4495.4,0.334]
[1759540204558,5.1949396,4495.5,4495.4,0.001]
[1759540204756,5.640958,4495.5,4495.4,0.001]
[1759540204911,5.640958,4495.5,4495.4,1.688]
[1759540206838,5.640958,4495.5,4495.4,0.001]
[1759540206839,6.274558,4495.5,4495.4,0.001]
[1759540208159,5.640958,4495.5,4495.4,0.001]
[1759540208457,2.96831134,4495.5,4495.4,0.001]
[1759540208619,5.18384666,4495.5,4495.4,0.001]
[1759540213740,5.18384666,4495.5,4495.4,2.506]
[1759540214941,5.18384666,4495.5,4495.4,0.001]
[1759540215364,5.81744666,4495.5,4495.4,0.001]
[1759540215569,5.90647651,4495.5,4495.4,0.001]
[1759540215878,7.06748076,4495.5,4495.4,0.001]
[1759540216169,7.15651061,4495.5,4495.4,0.001]
[1759540222983,5.87448076,4495.5,4495.4,0.001]
[1759540223380,6.32638076,4495.5,4495.4,0.001]
[1759540223681,6.95998076,4495.5,4495.4,0.001]
[1759540224077,7.04901061,4495.5,4495.4,0.001]
[1759540226684,6.59711061,4495.5,4495.4,0.001]
[1759540226993,7.04901061,4495.5,4495.4,0.001]
[1759540227675,7.05101061,4495.5,4495.4,0.001]
[1759540229315,7.52695881,4495.5,4495.4,0.001]
[1759540229514,9.62784531,4494.9,4494.8,1e-08]
[1759540229817,10.10379351,4494.9,4494.8,1e-08]
[1759540230113,10.54569351,4494.9,4494.8,1e-08]
[1759540230300,10.99489351,4494.9,4494.8,1e-08]
[1759540230500,12.56745017,4494.9,4494.8,1e-08]
[1759540232129,12.67858435,4494.9,4494.8,1e-08]
[1759540232333,15.18458435,4494.9,4494.8,1e-08]
[1759540232531,12.67858435,4494.9,4494.8,1e-08]
[1759540233030,12.78978435,4494.9,4494.8,1e-08]
[1759540233692,12.67865017,4494.9,4494.8,1e-08]
[1759540233895,12.23675017,4494.9,4494.8,1e-08]
[1759540234130,12.67865017,4494.9,4494.8,1e-08]
[1759540237815,8.30914845,4494.9,4494.8,1e-08]
[1759540238013,7.75604845,4494.9,4494.8,1e-08]
[1759540240506,7.30684845,4494.9,4494.8,1e-08]
[1759540240708,7.39589177,4494.9,4494.8,1e-08]
[1759540244204,7.39601105,4494.9,4494.8,1e-08]
[1759540244635,6.91994357,4494.9,4494.8,1e-08]
[1759540244909,5.34738691,4494.9,4494.8,1e-08]
[1759540246057,5.34938691,4494.9,4494.8,1e-08]
[1759540246853,4.71578691,4494.9,4494.8,1e-08]
[1759540247072,4.62674359,4494.9,4494.8,1e-08]
[1759540247872,4.73794359,4494.9,4494.8,1e-08]
[1759540248076,5.5267417,4494.9,4494.8,1e-08]
[1759540250578,4.73794359,4494.9,4494.8,1e-08]
[1759540250782,4.73794359,4494.9,4494.8,0.45220001]
[1759540251073,4.73794359,4494.9,4494.8,1e-08]
[1759540251273,4.73794359,4494.9,4494.8,0.45220001]
[1759540253675,4.73794359,4494.9,4494.8,1e-08]
[1759540256297,4.73794359,4494.9,4494.8,0.45220001]
[1759540258001,4.73794359,4494.9,4494.8,1e-08]
[1759540258188,2.33794359,4494.9,4494.8,0.45220001]
[1759540258700,2.34903653,4494.9,4494.8,1e-08]
[1759540258890,3.04529828,4494.9,4494.8,1e-08]
[1759540259088,3.51729828,4494.9,4494.8,1e-08]
[1759540259278,3.04529828,4494.9,4494.8,1e-08]
[1759540260207,3.51729828,4494.9,4494.8,1e-08]
[1759540261392,3.04529828,4494.9,4494.8,1e-08]
[1759540261626,2.34903653,4494.9,4494.8,1e-08]
[1759540263216,2.34903653,4494.9,4494.8,0.45220001]
[1759540263217,2.33794359,4494.9,4494.8,0.45220001]
[1759540264933,2.33794359,4494.9,4494.8,2.50500001]
[1759540265750,2.33794359,4494.9,4494.8,2.95720001]
[1759540267945,0.002,4494.9,4494.8,2.95720001]
[1759540268155,0.002,4494.9,4494.8,3.26404001]
[1759540268338,0.002,4494.9,4494.8,3.37524001]
[1759540268519,0.002,4494.9,4494.8,3.39748794]
[1759540269453,0.002,4494.9,4494.8,5.62228103]
[1759540269658,0.002,4494.9,4494.8,5.6000331]
[1759540270042,0.002,4494.9,4494.8,8.0000331]
[1759540270410,0.002,4494.9,4494.8,20.4606881]
[1759540270610,0.002,4494.9,4494.8,24.3903991]
[1759540270805,0.002,4494.9,4494.8,16.1456101]
[1759540271113,0.002,4494.9,4494.8,13.7504001]
[1759540271321,0.002,4494.9,4494.8,12.9409981]
[1759540271753,0.002,4494.9,4494.8,13.0189701]
[1759540271909,0.002,4494.9,4494.8,3.27024001]
[1759540272117,0.002,4494.9,4494.8,8.0000331]
[1759540273715,0.002,4494.9,4494.8,8.6336331]
[1759540274014,0.002,4494.9,4494.8,13.9694591]
[1759540276314,0.002,4494.9,4494.8,13.0888401]
[1759540276515,0.002,4494.9,4494.8,8.6336331]
[1759540276937,0.002,4494.9,4494.8,2.81804001]
[1759540277140,0.002,4494.9,4494.8,0.41804001]
[1759540277338,0.002,4494.9,4494.8,3.09064794]
[1759540277749,0.002,4494.9,4494.8,5.31544103]
[1759540277925,0.002,4494.9,4494.8,5.2931931]
[1759540278547,0.002,4494.9,4494.8,15.3772391]
[1759540278728,0.002,4494.9,4494.8,21.4792711]
[1759540278922,0.002,4494.9,4494.8,19.8593431]
[1759540279326,0.002,4494.9,4494.8,18.7057411]
[1759540279558,0.002,4494.9,4494.8,15.3666681]
[1759540279920,0.002,4494.9,4494.8,15.0909671]
[1759540280886,0.002,4494.9,4494.8,14.2526431]
[1759540281072,0.002,4494.9,4494.8,9.07065001]
[1759540281245,0.002,4494.9,4494.8,5.01620001]
[1759540282174,0.002,4494.9,4494.8,7.2409931]
[1759540284397,0.002,4494.9,4494.8,5.01620001]
[1759540284578,0.002,4494.9,4494.8,7.2409931]
[1759540285595,0.002,4494.9,4494.8,5.01620001]
[1759540285964,0.002,4494.9,4494.8,2.51120001]
[1759540286192,0.002,4494.9,4494.8,5.01620001]
[1759540287053,0.002,4494.9,4494.8,7.6882931]
[1759540288008,0.002,4494.9,4494.8,5.46350001]
[1759540288209,0.002,4494.9,4494.8,5.01620001]
[1759540289815,0.002,4494.9,4494.8,7.2409931]
[1759540290588,0.002,4494.9,4494.8,7.7003931]
[1759540291402,0.002,4494.9,4494.8,7.2409931]
[1759540292521,0.002,4494.9,4494.8,5.01620001]
[1759540292883,0.002,4494.9,4494.8,7.2409931]
[1759540293219,0.002,4494.9,4494.8,7.7003931]
[1759540293802,0.002,4494.9,4494.8,5.47560001]
[1759540293980,0.002,4494.9,4494.8,5.01620001]
[1759540294601,0.002,4494.9,4494.8,7.2409931]
[1759540297442,0.002,4494.9,4494.8,6.21326332]
[1759540297937,0.002,4494.9,4494.8,8.43805641]
[1759540299270,0.002,4494.9,4494.8,3.81326332]
[1759540299394,0.002,4494.9,4494.8,2.61620001]
[1759540299743,2.65824359,4494.9,4494.8,1e-08]
[1759540299892,2.65824359,4494.9,4494.8,2.50500001]
[1759540300096,3.1465352,4494.9,4494.8,2.50500001]
[1759540303402,3.1465352,4494.9,4494.8,1e-08]
[1759540303645,3.1465352,4494.9,4494.8,2.39800001]
[1759540304510,5.5465352,4494.9,4494.8,2.39800001]
[1759540306897,2.2249911,4494.4,4494.3,0.001]
[1759540307128,2.6699821,4494.4,4494.3,0.001]
[1759540307513,3.1014821,4494.4,4494.3,0.001]
[1759540308216,3.7350821,4494.4,4494.3,0.001]
[1759540309733,3.8462821,4494.4,4494.3,0.001]
[1759540311518,3.85737504,4494.4,4494.3,0.001]
[1759540315960,3.85737504,4494.4,4494.1,0.01]
[1759540315961,3.85737504,4494.4,4494.1,1e-08]
[1759540315962,2.22509011,4494.2,4494.1,1e-08]
[1759540316255,5.87853524,4494.2,4494.1,1e-08]
[1759540316456,5.8674423,4494.2,4494.1,1e-08]
[1759540316655,6.3178423,4494.2,4494.1,1e-08]
[1759540316874,9.74385705,4494.2,4494.1,1e-08]
[1759540317051,10.37745705,4494.2,4494.1,1e-08]
[1759540317422,10.37745705,4494.2,4491.2,2.22849242]
[1759540317423,5.25873962,4494.1,4493.1,1e-08]